Cogmind - Beta 10.2 @@@ ROGUE MODE // 2021.02.27 @ 18:05:09 Player: Nikola Kolodziejczyk Result: Destroyed by B-75 Beast with Heavy Plasma Cannon Performance ------------- Evolutions (4) 2000 Regions Visited (16) 3200 Robots Destroyed (35) 175 Value Destroyed (967) 967 Prototype IDs (16) 320 Alien Tech Used (0) 0 Bonus (1227) 1227 TOTAL SCORE: 7889 Bonus ------- Follower Combat Kills 447 Aligned with FarCom 300 Met Data Miner 300 Met Imprinter 300 Friendly Fire -120 Cogmind --------- Core Integrity 0/850 Matter 290/300 Energy 65/100 System Corruption 3% Temperature Cool (12) Movement Flying (40) Location -5/Proximity Caves Parts ------- > --- POWER (2) -------- (None) > --- PROPULSION (3) --- VTOL Module > --- UTILITY (8) ------ Experimental Terrain Scan Processor EM Shield > --- WEAPON (2) ------- Heavy Pick > --- INVENTORY (4) ---- Light Fission Core Medium Storage Unit Improved Utility Shielding Peak State ------------ > --- POWER ------------ Light Nuclear Core > --- PROPULSION ------- Gravmag System Gravmag System Gravmag System > --- UTILITY ---------- Advanced Signal Interpreter Army-in-a-Box > --- WEAPON ----------- Particle Gun Improved Grenade Launcher > --- INVENTORY -------- Gravmag System Advanced Sensor Array [Rating: 77] Favorites ----------- Power Light Nuclear Core Engine Light Ion Engine Power Core Light Nuclear Core Reactor Light Antimatter Reactor Propulsion Gravmag System Treads Light Treads Leg Carbon-fiber Leg Wheel Wheel Hover Unit Gravmag System Flight Unit VTOL Module Utility Advanced Signal Interpreter Device Advanced Sensor Array Storage Medium Storage Unit Processor Advanced Signal Interpreter Hackware Hacking Suite Protection Improved Utility Shielding Weapon Ion Cannon Energy Gun Particle Gun Energy Cannon Ion Cannon Ballistic Gun Light Assault Rifle Launcher Improved Grenade Launcher Piercing Weapon Heavy Pick Build | -11 -10 -10 -9 -9 -9 -8 -8 -7 -7 -7 -6 -6 -6 -6 -6 -5 ------- Run | Scr Mat Min Mat Min Exi Min Mat Fac Low Dat Pro Fac Low Low Zio Pro Slots Evolved 8 | . . . 2 . . . 2 2 . . . 2 . . . . Power 1 | . . . . . . . . . . . . 1 . . . . Propulsion 1 | . . . . . . . . 1 . . . . . . . . Utility 6 | . . . 2 . . . 2 1 . . . 1 . . . . Weapon . | . . . . . . . . . . . . . . . . . Parts Attached 93 | 3 8 . 12 1 3 5 7 14 . . 6 4 18 1 8 3 Power 17 | . 1 . 1 . . . 1 3 . . 4 . 5 . 2 . Engine 4 | . 1 . . . . . . 2 . . 1 . . . . . Core 9 | . . . 1 . . . 1 1 . . 1 . 4 . 1 . Reactor 4 | . . . . . . . . . . . 2 . 1 . 1 . Propulsion 22 | 2 4 . 1 . . 2 4 5 . . . . 2 . 1 1 Treads 4 | . . . . . . . 2 2 . . . . . . . . Leg 2 | . . . . . . 2 . . . . . . . . . . Wheel 2 | 2 . . . . . . . . . . . . . . . . Hover 7 | . . . . . . . 2 3 . . . . 2 . . . Flight 7 | . 4 . 1 . . . . . . . . . . . 1 1 Utility 30 | . 2 . 4 1 2 1 1 5 . . . 3 8 . 2 1 Device 12 | . . . 1 . . 1 1 2 . . . . 5 . 1 1 Storage 2 | . . . . . 1 . . . . . . . 1 . . . Processor 11 | . 2 . 2 1 1 . . 3 . . . 2 . . . . Hackware 2 | . . . 1 . . . . . . . . 1 . . . . Protection 3 | . . . . . . . . . . . . . 2 . 1 . Artifact . | . . . . . . . . . . . . . . . . . Weapon 24 | 1 1 . 6 . 1 2 1 1 . . 2 1 3 1 3 1 Energy Gun 3 | . . . 1 . . 2 . . . . . . . . . . Energy Cannon 8 | . . . 1 . . . . . . . 2 . 3 . 2 . Ballistic Gun 1 | 1 . . . . . . . . . . . . . . . . Ballistic Cannon . | . . . . . . . . . . . . . . . . . Launcher 8 | . 1 . 4 . 1 . 1 1 . . . . . . . . Special Weapon . | . . . . . . . . . . . . . . . . . Impact Weapon . | . . . . . . . . . . . . . . . . . Slashing Weapon . | . . . . . . . . . . . . . . . . . Piercing Weapon 4 | . . . . . . . . . . . . 1 . 1 1 1 Special Melee Weapon . | . . . . . . . . . . . . . . . . . Unidentified Prototypes 4 | . . . 1 . . . 1 1 . . . . 1 . . . Parts Lost 24 | . . . 1 . . 2 . 3 . . . 1 4 . 11 2 Power 4 | . . . . . . . . 1 . . . . 1 . 2 . Propulsion 9 | . . . 1 . . 1 . 1 . . . 1 1 . 4 . Utility 7 | . . . . . . 1 . . . . . . 1 . 3 2 Weapon 4 | . . . . . . . . 1 . . . . 1 . 2 . Highest Loss Streak 8 | . . . 1 . . 2 . 2 . . . 1 3 . 8 2 Average Slot Usage (%) 76 | . 83 100 92 88 87 98 53 58 69 69 82 85 88 81 72 16 Engine 1 | . 6 14 4 . . . . 3 7 7 1 . . . . . Core 5 | . . . 6 11 11 11 9 . . . . . 6 13 8 . Reactor 1 | . . . . . . . . . . . 5 6 2 . . . Leg 2 | . . . . . . 21 7 . . . . . . . . . Hover 11 | . . . . . . . 6 20 23 23 23 20 19 20 13 . Flight 5 | . 12 28 22 22 22 . . . . . . . . . . . Device 11 | . . . 11 11 11 10 8 10 15 15 15 13 16 20 17 4 Storage 2 | . . . . . 6 11 . . . . . . 5 6 4 . Processor 18 | . 25 28 22 22 22 22 . 12 23 23 23 25 23 20 19 8 Hackware 1 | . . . 9 11 4 . . . . . . 6 2 . . . Energy Gun 5 | . . . 10 11 10 20 11 1 . . . . . . . . Energy Cannon 2 | . . . . . . . . . . . 13 12 7 . . . Ballistic Gun 1 | . 14 14 . . . . . . . . . . . . . . Launcher 2 | . 8 14 5 . . . 6 5 . . . . . . . . Naked Turns . | . . . . . . . . . . . . . . . . . Heaviest Build 94 | 1 7 7 15 9 20 21 94 94 5 5 28 26 42 28 28 4 Greatest Support 44 | 3 10 10 10 10 10 25 40 44 11 11 33 33 33 33 33 5 Greatest Overweight (x) 8 | . 1 . 1 . 1 2 8 4 . . . . 1 . . 1 Average Overweight (x) . | . . . . . . . 3 . . . . . . . . . Largest Inventory Capacity 8 | 4 4 4 4 4 8 8 8 4 4 4 4 4 8 8 8 4 Average Capacity 5 | 4 4 4 4 4 6 8 4 4 4 4 4 4 7 8 6 4 Most Carried 8 | 4 4 4 4 4 8 8 8 4 3 3 4 4 8 7 8 4 Average Carried 4 | 2 3 4 3 3 5 7 3 3 3 3 3 3 6 6 6 3 Final Capacity 8 | 4 4 4 4 4 8 8 4 4 4 4 4 4 8 8 4 4 Final Carried 8 | 4 4 4 2 4 7 8 4 3 3 3 4 4 7 6 4 3 Class Distribution -------------------- 39% | Scout 34% | Mutant 25% | Scavenger-Mutant Dominant Class ---------------- Mutant | -10/Materials Mutant | -10/Mines Scout | -9/Materials Scout | -9/Mines Mutant | -9/Exiles Scavenger-Mutant | -8/Mines Mutant | -8/Materials Scout | -7/Factory Scout | -7/Lower Caves Scout | -7/Data Miner Scout | -6/Proximity Caves Scout | -6/Factory Scavenger-Mutant | -6/Lower Caves Scavenger-Mutant | -6/Lower Caves Scavenger-Mutant | -6/Zion Mutant | -5/Proximity Caves Resources | -11 -10 -10 -9 -9 -9 -8 -8 -7 -7 -7 -6 -6 -6 -6 -6 -5 ----------- Run | Scr Mat Min Mat Min Exi Min Mat Fac Low Dat Pro Fac Low Low Zio Pro Matter Collected 1414 | 229 82 21 114 . . 146 166 176 . . 217 20 158 3 62 20 Remotely . | . . . . . . . . . . . . . . . . . Salvage Created 895 | . 91 . 153 . . 95 . 95 . . 184 96 105 . 50 26 Parts 71 | . 15 . 21 . . 5 . 8 . . 6 4 7 . 4 1 Haulers Intercepted 3 | . 1 . . . . . . 1 . . . 1 . . . . Recyclers Shooed . | . . . . . . . . . . . . . . . . . Parts Field Recycled . | . . . . . . . . . . . . . . . . . Retrieved Matter . | . . . . . . . . . . . . . . . . . Parts Self-Destructed 20 | . . . . . . . . . . . 8 . 10 . . 2 Prevented 4 | . . . . . . . . . . . 2 . . 2 . . Kills | -11 -10 -10 -9 -9 -9 -8 -8 -7 -7 -7 -6 -6 -6 -6 -6 -5 ------- Run | Scr Mat Min Mat Min Exi Min Mat Fac Low Dat Pro Fac Low Low Zio Pro Combat Hostiles Destroyed 23 | . 3 . 6 . . 3 . 2 . . 3 . 3 . 2 1 Melee 3 | . . . . . . . . . . . . . . . 2 1 Guns 2 | . 1 . 1 . . . . . . . . . . . . . Cannons 6 | . . . . . . . . . . . 3 . 3 . . . AOE 12 | . 2 . 5 . . 3 . 2 . . . . . . . . Classes Destroyed 13 | . 4 . 4 . . 1 . 2 . . 2 . . . . . Worker 1 | . 1 . . . . . . . . . . . . . . . Builder 3 | . 1 . . . . . . 2 . . . . . . . . Tunneler 1 | . . . 1 . . . . . . . . . . . . . Hauler 3 | . 1 . . . . . . 1 . . . 1 . . . . Recycler 1 | . . . . . . . . 1 . . . . . . . . Operator 2 | . . . 2 . . . . . . . . . . . . . Watcher 1 | . . . 1 . . . . . . . . . . . . . Swarmer 11 | . 3 . 4 . . . . 1 . . . . 2 . . 1 Grunt 5 | . . . . . . 3 . . . . 1 . 1 . . . Sentry 2 | . . . 2 . . . . . . . . . . . . . Programmer 1 | . . . . . . . . 1 . . . . . . . . Wasp 2 | . . . . . . . . . . . . . . . 2 . Savage 1 | . . . . . . . . . . . 1 . . . . . Butcher 1 | . . . . . . . . . . . 1 . . . . . Best Kill Streak 5 | . 5 . 5 . . 3 . 3 . . 2 1 1 . 2 1 Combat Bots Only 5 | . 3 . 5 . . 3 . 1 . . 2 . 1 . 2 1 Max Kills in Single Turn 3 | . 3 . 2 . . 2 . 2 . . 1 1 1 . 1 1 Gunslinging . | . . . . . . . . . . . . . . . . . Exploded 2 | . 1 . 2 . . 2 . 1 . . . . . . . . Melee 1 | . . . . . . . . . . . . . . . 1 1 Uniques/NPCs Destroyed . | . . . . . . . . . . . . . . . . . Combat | -11 -10 -10 -9 -9 -9 -8 -8 -7 -7 -7 -6 -6 -6 -6 -6 -5 -------- Run | Scr Mat Min Mat Min Exi Min Mat Fac Low Dat Pro Fac Low Low Zio Pro Damage Taken 2867 | . 52 . 243 . . 66 42 455 . . 58 139 212 . 1389 211 Core 987 | . 9 . 49 . . . . 63 . . 12 43 58 . 601 152 Absorbed by Shields . | . . . . . . . . . . . . . . . . . Core Remaining (%) 94 | 100 . 96 . . . 87 100 . . . 89 . . . . . Volleys Fired 75 | . 16 . 12 . . 2 1 16 . . 12 2 7 . 7 . Largest 2 | . 2 . 2 . . 1 2 1 . . 2 1 2 . 2 . Hottest 150 | . 50 . 131 . . 36 101 36 . . 120 60 150 . 150 . Shots Fired 102 | . 18 . 18 . . 2 2 16 . . 19 2 12 . 13 . Gun 24 | . 16 . 7 . . . 1 . . . . . . . . . Cannon 48 | . . . 2 . . . . . . . 19 2 12 . 13 . Launcher 30 | . 2 . 9 . . 2 1 16 . . . . . . . . Special . | . . . . . . . . . . . . . . . . . Kinetic 16 | . 16 . . . . . . . . . . . . . . . Thermal 56 | . . . 9 . . . 1 . . . 19 2 12 . 13 . Explosive 30 | . 2 . 9 . . 2 1 16 . . . . . . . . Electromagnetic . | . . . . . . . . . . . . . . . . . Robot Hit Streak 16 | . 4 . 9 . . 6 . 13 . . 14 16 6 . 14 . Robot Miss Streak 2 | . 2 . 1 . . . . 1 . . . . 1 . . . Penetration Max . | . . . . . . . . . . . . . . . . . Secondary Targets . | . . . . . . . . . . . . . . . . . Shots Hit Robots 76 | . 10 . 13 . . 2 . 9 . . 13 3 9 . 16 1 Core Hits 60 | . 7 . 12 . . 8 1 12 . . 7 3 4 . 5 1 Critical Hits 1 | . . . . . . . . . . . 1 . . . . . Critical Kills 1 | . . . . . . . . . . . 1 . . . . . Critical Parts Destroyed . | . . . . . . . . . . . . . . . . . Melee Attacks 12 | . . . . . . . . . . . . 2 . 3 5 2 Impact . | . . . . . . . . . . . . . . . . . Slashing . | . . . . . . . . . . . . . . . . . Piercing 12 | . . . . . . . . . . . . 2 . 3 5 2 Sneak Attacks . | . . . . . . . . . . . . . . . . . Combat Hostiles . | . . . . . . . . . . . . . . . . . Follow-up Attacks . | . . . . . . . . . . . . . . . . . Damage Inflicted 3240 | . 282 . 604 . . 361 5 688 . . 297 90 295 . 587 31 Guns 183 | . 83 . 100 . . . . . . . . . . . . . Cannons 1151 | . . . 25 . . . . . . . 297 45 295 . 489 . Explosions 1732 | . 199 . 479 . . 361 5 688 . . . . . . . . Melee 168 | . . . . . . . . . . . . 39 . . 98 31 Ramming 6 | . . . . . . . . . . . . 6 . . . . Kinetic 83 | . 83 . . . . . . . . . . . . . . . Thermal 1251 | . . . 125 . . . . . . . 297 45 295 . 489 . Explosive 1732 | . 199 . 479 . . 361 5 688 . . . . . . . . Electromagnetic . | . . . . . . . . . . . . . . . . . Impact . | . . . . . . . . . . . . . . . . . Slashing . | . . . . . . . . . . . . . . . . . Piercing 168 | . . . . . . . . . . . . 39 . . 98 31 Highest Corruption 4 | . . . . . . . . 1 1 1 4 . . . 3 3 Average Corruption 1 | . . . . . . . . 1 1 1 1 . . . 2 3 Corruption Purged . | . . . . . . . . . . . . . . . . . Effects 8 | . . . . . . . . 2 1 1 1 . . . 1 2 Message Errors 3 | . . . . . . . . 2 . 1 . . . . . . Energy Discharges 2 | . . . . . . . . . 1 . . . . . . 1 Data Loss (minor) 3 | . . . . . . . . . . . 1 . . . 1 1 Overload Shots . | . . . . . . . . . . . . . . . . . Overflow Damage 106 | . . . . . . 5 . 23 . . 12 . 20 . 46 . Projectiles 78 | . . . . . . . . . . . 12 . 20 . 46 . Explosions 28 | . . . . . . 5 . 23 . . . . . . . . Melee . | . . . . . . . . . . . . . . . . . Knockbacks . | . . . . . . . . . . . . . . . . . Impact . | . . . . . . . . . . . . . . . . . Kinetic . | . . . . . . . . . . . . . . . . . Secondary . | . . . . . . . . . . . . . . . . . Self-Inflicted Damage 223 | . 29 . 97 . . 49 42 3 . . . 3 . . . . Shots 8 | . 1 . 3 . . 2 1 1 . . . . . . . . Rammed 1 | . . . . . . . . . . . . 1 . . . . Targets Rammed 1 | . . . . . . . . . . . . 1 . . . . Kicked . | . . . . . . . . . . . . . . . . . Crushed . | . . . . . . . . . . . . . . . . . Highest Temperature 326 | . 4 . 153 . . 8 27 3 . . 286 23 187 . 326 . Average Temperature 85 | . 2 . 42 . . 6 14 3 . . 117 12 72 . 164 . Received Heat Transfer 303 | . . . 45 . . 9 . 18 . . 9 24 63 . 105 30 Effects 3 | . . . . . . . . . . . 2 . . . 1 . Shutdowns 1 | . . . . . . . . . . . . . . . 1 . Interference 2 | . . . . . . . . . . . 2 . . . . . Siege Activations . | . . . . . . . . . . . . . . . . . Robots Corrupted . | . . . . . . . . . . . . . . . . . Combat Hostiles . | . . . . . . . . . . . . . . . . . Parts Fried . | . . . . . . . . . . . . . . . . . Impact Corruptions . | . . . . . . . . . . . . . . . . . Robots Melted . | . . . . . . . . . . . . . . . . . Combat Hostiles . | . . . . . . . . . . . . . . . . . Parts Melted . | . . . . . . . . . . . . . . . . . Heat Transferred 1508 | . . . 259 . . . . . . . 481 74 297 . 397 . Parts Sabotaged . | . . . . . . . . . . . . . . . . . Parts Stolen . | . . . . . . . . . . . . . . . . . Parts Stripped . | . . . . . . . . . . . . . . . . . Power Chain Reactions . | . . . . . . . . . . . . . . . . . Missiles Intercepted . | . . . . . . . . . . . . . . . . . Alert | -11 -10 -10 -9 -9 -9 -8 -8 -7 -7 -7 -6 -6 -6 -6 -6 -5 ------- Run | Scr Mat Min Mat Min Exi Min Mat Fac Low Dat Pro Fac Low Low Zio Pro Peak Influence 1126 | . 153 59 291 113 . 90 1126 415 . . . 75 . . . . Initial 278 | . . 59 22 113 . . 35 278 . . . . . . . . Average 239 | . 78 59 98 113 . 89 688 231 . . . 37 . . . . Maximum Alert Level 4 | . . . 1 . . . 4 2 . . . . . . . . Low Security (%) 61 | 100 100 100 85 100 . 100 13 30 . . . 100 . . . . Level 1 22 | . . . 14 . . . 1 69 . . . . . . . . Level 2 4 | . . . . . . . 22 . . . . . . . . . Level 3 11 | . . . . . . . 59 . . . . . . . . . Level 4 . | . . . . . . . 2 . . . . . . . . . Level 5 . | . . . . . . . . . . . . . . . . . High Security . | . . . . . . . . . . . . . . . . . Max Security . | . . . . . . . . . . . . . . . . . Squads Dispatched 11 | . 1 . . 1 . . 4 3 . . . 1 . . . 1 Investigation 4 | . . . . 1 . . 2 . . . . 1 . . . . Extermination 1 | . . . . . . . . 1 . . . . . . . . Reinforcement 3 | . 1 . . . . . 1 1 . . . . . . . . Assault 2 | . . . . . . . 1 . . . . . . . . 1 Garrison 1 | . . . . . . . . 1 . . . . . . . . Intercept . | . . . . . . . . . . . . . . . . . Construction Impeded 1 | . . . . . . . . 1 . . . . . . . . Haulers Reinforced . | . . . . . . . . . . . . . . . . . Stealth | -11 -10 -10 -9 -9 -9 -8 -8 -7 -7 -7 -6 -6 -6 -6 -6 -5 --------- Run | Scr Mat Min Mat Min Exi Min Mat Fac Low Dat Pro Fac Low Low Zio Pro Distress Signals 3 | . . . . . . . 2 . . . . 1 . . . . Communications Jammed . | . . . . . . . . . . . . . . . . . Distress Signals . | . . . . . . . . . . . . . . . . . Times Spotted 81 | . 6 . 8 . . 2 . 5 . . 7 2 5 . 39 7 Peak Tracking Total 28 | . 4 . 6 . . 2 1 2 . . 3 1 3 . 28 11 Tactical Retreats 7 | . . . . . . . . . . . . 1 1 . 4 1 Traps | -11 -10 -10 -9 -9 -9 -8 -8 -7 -7 -7 -6 -6 -6 -6 -6 -5 ------- Run | Scr Mat Min Mat Min Exi Min Mat Fac Low Dat Pro Fac Low Low Zio Pro Traps Triggered 1 | . . . . . . . . . . . . 1 . . . . Indirectly . | . . . . . . . . . . . . . . . . . Trap Hack Attempts . | . . . . . . . . . . . . . . . . . Triggered . | . . . . . . . . . . . . . . . . . Disarmed . | . . . . . . . . . . . . . . . . . Reprogrammed . | . . . . . . . . . . . . . . . . . Reused . | . . . . . . . . . . . . . . . . . Traps Extracted . | . . . . . . . . . . . . . . . . . Installed . | . . . . . . . . . . . . . . . . . Triggered 1 | . . . . . . . . . . . . . . 1 . . Machines | -11 -10 -10 -9 -9 -9 -8 -8 -7 -7 -7 -6 -6 -6 -6 -6 -5 ---------- Run | Scr Mat Min Mat Min Exi Min Mat Fac Low Dat Pro Fac Low Low Zio Pro Machines Disabled 4 | . . . . . . . 2 2 . . . . . . . . Max in Single Turn 2 | . . . . . . . . 2 . . . . . . . . Garrison Access 1 | . . . . . . . 1 . . . . . . . . . Machines Sabotaged . | . . . . . . . . . . . . . . . . . Garrisons Compromised . | . . . . . . . . . . . . . . . . . Overloaded Fab Kills . | . . . . . . . . . . . . . . . . . Fab Network Shutdowns . | . . . . . . . . . . . . . . . . . Hacking | -11 -10 -10 -9 -9 -9 -8 -8 -7 -7 -7 -6 -6 -6 -6 -6 -5 --------- Run | Scr Mat Min Mat Min Exi Min Mat Fac Low Dat Pro Fac Low Low Zio Pro Machines Accessed 27 | . 4 . 4 1 4 . 3 4 . 4 . 3 . . . . Terminals 16 | . 3 . 4 . . . 3 4 . . . 2 . . . . Fabricators 1 | . . . . . . . . . . . . 1 . . . . Repair Stations . | . . . . . . . . . . . . . . . . . Recycling Units 1 | . 1 . . . . . . . . . . . . . . . Scanalyzers . | . . . . . . . . . . . . . . . . . Garrison Access . | . . . . . . . . . . . . . . . . . Total Hacks 116 | . 7 . 10 1 49 . 8 8 . 25 . 8 . . . . Successful 96 | . 5 . 5 1 49 . 3 4 . 25 . 4 . . . . Failed 20 | . 2 . 5 . . . 5 4 . . . 4 . . . . Catastrophic 1 | . 1 . . . . . . . . . . . . . . . Database Lockouts . | . . . . . . . . . . . . . . . . . Manual 22 | . 2 . 6 . 1 . 5 6 . . . 2 . . . . Terminals 36 | . 5 . 10 . . . 8 8 . . . 5 . . . . Fabricators 3 | . . . . . . . . . . . . 3 . . . . Repair Stations . | . . . . . . . . . . . . . . . . . Recycling Units 2 | . 2 . . . . . . . . . . . . . . . Scanalyzers . | . . . . . . . . . . . . . . . . . Garrison Access . | . . . . . . . . . . . . . . . . . Terminal Hacks 88 | . 3 . 2 1 49 . 3 4 . 25 . 1 . . . . Record 60 | . . . . . 49 . . . . 11 . . . . . . Part Schematic 6 | . . . . . . . . . . 6 . . . . . . Robot Schematic 5 | . . . . . . . . . . 5 . . . . . . Prototype ID Bank 3 | . . . . . . . . . . 3 . . . . . . Open Door 1 | . . . . 1 . . . . . . . . . . . . Branch Access Points 4 | . 1 . 1 . . . 1 1 . . . . . . . . Emergency Access Points 1 | . 1 . . . . . . . . . . . . . . . Terminal Index 1 | . . . . . . . . . . . . 1 . . . . Alert Level 1 | . . . . . . . . 1 . . . . . . . . Unreport Threat 4 | . . . . . . . 2 2 . . . . . . . . Zone Layout 2 | . 1 . 1 . . . . . . . . . . . . . Fabricator Hacks 2 | . . . . . . . . . . . . 2 . . . . Load Schematic 1 | . . . . . . . . . . . . 1 . . . . Build 1 | . . . . . . . . . . . . 1 . . . . Repair Station Hacks . | . . . . . . . . . . . . . . . . . Recycling Unit Hacks 1 | . 1 . . . . . . . . . . . . . . . Retrieve Components 1 | . 1 . . . . . . . . . . . . . . . Scanalyzer . | . . . . . . . . . . . . . . . . . Garrison Access Hacks . | . . . . . . . . . . . . . . . . . Unauthorized Hacks 5 | . 1 . 3 . . . . . . . . 1 . . . . Terminals 5 | . 1 . 3 . . . . . . . . 1 . . . . Track 1 | . . . 1 . . . . . . . . . . . . . Botnet 4 | . 1 . 2 . . . . . . . . 1 . . . . Fabricators . | . . . . . . . . . . . . . . . . . Repair Stations . | . . . . . . . . . . . . . . . . . Recycling Units . | . . . . . . . . . . . . . . . . . Scanalyzers . | . . . . . . . . . . . . . . . . . Garrison Access . | . . . . . . . . . . . . . . . . . Data Cores Recovered 2 | . . . 2 . . . . . . . . . . . . . Used 2 | . . . 2 . . . . . . . . . . . . . Hacking Detections 17 | . 3 . 4 . . . 3 4 . . . 3 . . . . Full Trace Events . | . . . . . . . . . . . . . . . . . Feedback Events . | . . . . . . . . . . . . . . . . . Feedback Blocked . | . . . . . . . . . . . . . . . . . Robot Schematics Acquired 5 | . . . . . . . . . . 5 . . . . . . Robots Built . | . . . . . . . . . . . . . . . . . Matter . | . . . . . . . . . . . . . . . . . Time . | . . . . . . . . . . . . . . . . . Total Robot Build Rating . | . . . . . . . . . . . . . . . . . Part Schematics Acquired 6 | . . . . . . . . . . 6 . . . . . . Parts Built 1 | . . . . . . . . . . . . 1 . . . . Matter 285 | . . . . . . . . . . . . 285 . . . . Time 76 | . . . . . . . . . . . . 76 . . . . Total Part Build Rating 5 | . . . . . . . . . . . . 5 . . . . Parts Repaired . | . . . . . . . . . . . . . . . . . Time . | . . . . . . . . . . . . . . . . . Parts Recycled . | . . . . . . . . . . . . . . . . . Recycled Matter . | . . . . . . . . . . . . . . . . . Retrieved Matter . | . . . . . . . . . . . . . . . . . Retrieved Components 3 | . 3 . . . . . . . . . . . . . . . Parts Scanalyzed . | . . . . . . . . . . . . . . . . . Part Schematics Acquired . | . . . . . . . . . . . . . . . . . Parts Damaged . | . . . . . . . . . . . . . . . . . Bothacking | -11 -10 -10 -9 -9 -9 -8 -8 -7 -7 -7 -6 -6 -6 -6 -6 -5 ------------ Run | Scr Mat Min Mat Min Exi Min Mat Fac Low Dat Pro Fac Low Low Zio Pro Used RIF Installer . | . . . . . . . . . . . . . . . . . Robots Hacked . | . . . . . . . . . . . . . . . . . Non-combat . | . . . . . . . . . . . . . . . . . Combat . | . . . . . . . . . . . . . . . . . Robot Hacks Applied . | . . . . . . . . . . . . . . . . . Relay Couplers Released 1 | . . . . . . . 1 . . . . . . . . . Machine Destruction 1 | . . . . . . . 1 . . . . . . . . . Robots Rewired . | . . . . . . . . . . . . . . . . . Allies Hacked . | . . . . . . . . . . . . . . . . . Hacks Repelled . | . . . . . . . . . . . . . . . . . Allies | -11 -10 -10 -9 -9 -9 -8 -8 -7 -7 -7 -6 -6 -6 -6 -6 -5 -------- Run | Scr Mat Min Mat Min Exi Min Mat Fac Low Dat Pro Fac Low Low Zio Pro Total Allies 9 | . . 3 . . . . . . . . 1 . . . 5 . Largest Group 5 | . . 3 3 3 3 3 2 2 . . 1 1 1 . 5 . Highest-Rated Group 115 | . . 40 40 40 40 40 32 32 . . 94 94 94 . 115 . Highest-Rated Ally 94 | . . 16 16 16 16 16 16 16 . . 94 94 94 . 31 . Total Orders 4 | . . . . . . . 3 1 . . . . . . . . EXPLORE 2 | . . . . . . . 1 1 . . . . . . . . RETURN 2 | . . . . . . . 2 . . . . . . . . . Ally Attacks 219 | . . . 8 . . 3 150 44 . . 10 . 4 . . . Total Damage 4266 | . . . 88 . . 34 3136 629 . . 280 . 99 . . . Kills 53 | . . . 1 . . 1 38 8 . . 3 . 2 . . . Allies Corrupted 1 | . . . . . . . . 1 . . . . . . . . Allies Melted . | . . . . . . . . . . . . . . . . . Intel | -11 -10 -10 -9 -9 -9 -8 -8 -7 -7 -7 -6 -6 -6 -6 -6 -5 ------- Run | Scr Mat Min Mat Min Exi Min Mat Fac Low Dat Pro Fac Low Low Zio Pro Robot Analysis Total . | . . . . . . . . . . . . . . . . . Derelict Logs Recovered 9 | . . 2 . 1 . . . . 1 . 1 . 2 1 1 . Drone Launches 51 | . . . . . . . 30 21 . . . . . . . . Drone Recoveries 22 | . . . . . . . 21 1 . . . . . . . . Exploration | -11 -10 -10 -9 -9 -9 -8 -8 -7 -7 -7 -6 -6 -6 -6 -6 -5 ------------- Run | Scr Mat Min Mat Min Exi Min Mat Fac Low Dat Pro Fac Low Low Zio Pro Turns Passed 4268 | 29 137 194 212 79 386 398 475 760 14 47 505 219 254 116 360 83 Spaces Moved 5008 | 41 185 385 362 134 642 314 192 755 24 78 345 352 243 202 607 147 Core 357 | 41 97 . . . . . . . . . . . . . 103 116 Treads 108 | . . . . . . . 49 59 . . . . . . . . Legs 402 | . . . . . . 312 90 . . . . . . . . . Wheels . | . . . . . . . . . . . . . . . . . Hover 2419 | . . . . . . . 53 696 24 78 345 352 243 202 426 . Flight 1722 | . 88 385 362 134 642 2 . . . . . . . . 78 31 Fastest Speed 37 | 50 37 37 37 37 37 120 120 52 60 60 52 52 52 52 40 40 Average Speed 67 | 50 45 37 38 37 58 120 232 88 60 60 54 52 58 52 50 49 Slowest Speed 560 | 50 100 37 117 37 117 200 560 296 60 60 60 52 116 52 56 100 Overloaded Moves . | . . . . . . . . . . . . . . . . . Propulsion Burnouts . | . . . . . . . . . . . . . . . . . Robots Hopped 12 | . 1 3 5 . . . . . . . . . . . 1 2 Cave-ins Triggered . | . . . . . . . . . . . . . . . . . Exploration Rate (%) 47 | 3 44 98 31 31 96 84 65 31 4 68 58 11 40 44 74 25 Regions Visited 16 Branch Regions 11 Pre-discovered Areas 6 | . . 1 . 1 1 . . . . 1 . . 1 . 1 . Known Exits Taken 10 | . 1 . 1 . . . 1 1 1 1 1 1 1 1 . . Unknown Exits Taken 6 | 1 . 1 . 1 1 1 . . . . . . . . 1 . Scrap Searched 6 | . . 1 . . . 1 . . . . 2 . 1 . . 1 Spaces Dug 18 | . . . . . . . 14 . . . . 1 . 2 . 1 Terrain Destroyed 175 | . 5 . 74 . . 23 14 53 . . . 1 2 2 . 1 Melee 4 | . . . . . . . . . . . . 1 . 2 . 1 Projectile 3 | . . . 1 . . . . . . . . . 2 . . . AOE 168 | . 5 . 73 . . 23 14 53 . . . . . . . . Terrain Rammed . | . . . . . . . . . . . . . . . . . Walls Destroyed . | . . . . . . . . . . . . . . . . . Machines Disabled . | . . . . . . . . . . . . . . . . . Actions | -11 -10 -10 -9 -9 -9 -8 -8 -7 -7 -7 -6 -6 -6 -6 -6 -5 --------- Run | Scr Mat Min Mat Min Exi Min Mat Fac Low Dat Pro Fac Low Low Zio Pro Total 5780 | 48 221 432 416 162 656 330 225 831 23 77 642 381 341 206 639 150 Wait 497 | . . 51 17 26 6 8 1 35 . . 274 16 58 1 4 . Move 4971 | 40 182 378 352 133 641 313 191 754 23 77 344 352 242 201 604 144 Hop 10 | . 1 3 4 . . . . . . . . . . . 1 1 Pick Up 45 | 5 5 . 5 1 1 . 10 4 . . 4 3 5 . 2 . Fast Attach 40 | 2 6 . 5 . 2 5 5 5 . . . 2 5 . 1 2 Attach 35 | 1 . . 6 . 1 . . 8 . . 2 1 8 1 6 1 Detach 30 | . . . 6 1 2 1 2 4 . . . . 10 . 4 . Swap 18 | . 2 . 1 1 . . 2 1 . . 4 1 5 . 1 . Drop 47 | . 9 . 8 . 3 1 13 4 . . 2 2 1 . 4 . Fire 75 | . 16 . 12 . . 2 1 16 . . 12 2 7 . 7 . Melee 12 | . . . . . . . . . . . . 2 . 3 5 2 Ram . | . . . . . . . . . . . . . . . . . Kick . | . . . . . . . . . . . . . . . . . Crush . | . . . . . . . . . . . . . . . . . Escape Stasis . | . . . . . . . . . . . . . . . . . Rewire . | . . . . . . . . . . . . . . . . . Trap . | . . . . . . . . . . . . . . . . . Miscellaneous . | . . . . . . . . . . . . . . . . . Route ------- -11/Scrapyard -10/Materials (discovered 3 exits: *Mat / *Min x2) -10/Mines (discovered 2 exits: *Mat x2) -9/Materials (discovered 5 exits: *Mat / *Min x2 / *Sto x2) -9/Mines -9/Exiles (discovered 2 exits: [*Min x2]) -8/Mines (discovered 2 exits: *Mat x2) -8/Materials (discovered 2 exits: *Fac x2) -7/Factory (discovered 3 exits: *Fac / *Low x2) -7/Lower Caves -7/Data Miner -6/Proximity Caves -6/Factory (discovered 2 exits: *Low / Ext) -6/Lower Caves -6/Lower Caves -6/Zion -5/Proximity Caves History --------- Turn | Location | Event 13 | -11/Scrapyard | Discovered new exit (range 16) 30 | -11/Scrapyard | Entered Materials 123 | -10/Materials | Discovered new exit (range 16) 123 | -10/Materials | Identified exit to Mines 167 | -10/Materials | Entered Mines 169 | -10/Mines | Assisted by bots powering up and referring to "LRC-V3" 176 | -10/Mines | Discovered new exit (range 14) 226 | -10/Mines | Learned location of Zion (-6) 228 | -10/Mines | Learned Materials terminal intel 261 | -10/Mines | Discovered new exit (range 8) 318 | -10/Mines | Build established: Mutant 361 | -10/Mines | Entered Materials 361 | -9/Materials | Accompanied by 3 allies 361 | -9/Materials | Evolved 2 slots: Utility x2 362 | -9/Materials | Loaded intel: 12 terminal locations 408 | -9/Materials | Discovered new exit (range 15) 456 | -9/Materials | Discovered new exit (range 15) 531 | -9/Materials | Discovered new exit (range 2) 551 | -9/Materials | Identified exit to Mines 551 | -9/Materials | Identified exit to Storage 573 | -9/Materials | Entered Mines 573 | -9/Mines | Accompanied by 3 allies 574 | -9/Mines | Learned location of Storage (-9) 605 | -9/Mines | Met a Derelict shopkeep closing up shop 624 | -9/Mines | Deemed a non-threat by the Exiles lab entrance 624 | -9/Mines | Discovered new exit (range 5) 652 | -9/Mines | Entered Exiles 652 | -9/Exiles | Accompanied by 3 allies 657 | -9/Exiles | Discovered new exit (range 17) 661 | -9/Exiles | Met 8R-AWN 666 | -9/Exiles | Build established: Scout 668 | -9/Exiles | Met EX-HEX 682 | -9/Exiles | Met EX-DEC 692 | -9/Exiles | Visited The Gauntlet 751 | -9/Exiles | Discovered new exit (range 12) 775 | -9/Exiles | Met EX-BIN 782 | -9/Exiles | Aligned with FarCom system 783 | -9/Exiles | Given EX-Vault access code 798 | -9/Exiles | Opened EX-Vault 810 | -9/Exiles | Warned to stay clear of 0b10 Research branches 912 | -9/Exiles | Found Prototype Device 1038 | -9/Exiles | Left Exiles lab with Army-in-a-Box 1038 | -9/Exiles | Entered Mines 1038 | -8/Mines | Accompanied by 3 allies 1128 | -8/Mines | Discovered new exit (range 9) 1332 | -8/Mines | Build established: Scavenger-Mutant 1419 | -8/Mines | Discovered new exit (range 5) 1436 | -8/Mines | Entered Materials 1436 | -8/Materials | Accompanied by 2 allies 1436 | -8/Materials | Evolved 2 slots: Utility x2 1437 | -8/Materials | Identified exit to Factory 1440 | -8/Materials | Identified Army-in-a-Box 1521 | -8/Materials | Discovered exit to Factory (range 64) 1857 | -8/Materials | Build established: Mutant 1911 | -8/Materials | Entered Factory 1911 | -7/Factory | Accompanied by 2 allies 1911 | -7/Factory | Evolved 2 slots: Propulsion x1, Utility x1 2470 | -7/Factory | Garrison activated, responded to threat 2477 | -7/Factory | Discovered new exit (range 15) 2484 | -7/Factory | Identified exit to Factory 2605 | -7/Factory | Build established: Scout 2664 | -7/Factory | Identified exit to Lower Caves 2671 | -7/Factory | Entered Lower Caves 2672 | -7/Lower Caves | A Derelict revealed a hidden shortcut to meet someone special 2673 | -7/Lower Caves | Learned location of 1 exit from Factory 2677 | -7/Lower Caves | Identified exit to Data Miner 2685 | -7/Lower Caves | Entered Data Miner 2685 | -7/Data Miner | Discovered new exit (range 6) 2697 | -7/Data Miner | Met Data Miner 2708 | -7/Data Miner | Learned location of Section 7 (-2) 2708 | -7/Data Miner | Acquired the access code to Warlord's prototype stash 2718 | -7/Data Miner | Received God Mode back door access code from Data Miner 2731 | -7/Data Miner | Identified exit to Proximity Caves 2732 | -7/Data Miner | Entered Proximity Caves 2777 | -6/Proximity Caves | Escorted by Enhanced Grunt 3073 | -6/Proximity Caves | Received a Behemoth hack from an annoying Tinkerer 3141 | -6/Proximity Caves | Attacked by a faux Warlord 3209 | -6/Proximity Caves | Discovered exit to Factory (range 10) 3237 | -6/Proximity Caves | Entered Factory 3237 | -6/Factory | Accompanied by 1 ally 3237 | -6/Factory | Evolved 2 slots: Power x1, Utility x1 3238 | -6/Factory | Identified exit to Lower Caves 3239 | -6/Factory | Identified exit to Extension 3404 | -6/Factory | Incoming investigation squad redirected 3409 | -6/Factory | Fabricated Exp. Terrain Scan Processor (x1) 3456 | -6/Factory | Entered Lower Caves 3456 | -6/Lower Caves | Accompanied by 1 ally 3576 | -6/Lower Caves | Found Prototype Device 3576 | -6/Lower Caves | Identified Exp. Thermal Shield 3676 | -6/Lower Caves | Lost 3 parts (1n1u1w) 3683 | -6/Lower Caves | Learned Factory garrison access intel 3702 | -6/Lower Caves | Discovered new exit (range 16) 3709 | -6/Lower Caves | Identified exit to Lower Caves 3710 | -6/Lower Caves | Entered another Lower Caves area 3728 | -6/Lower Caves | Encountered a Warlord checkpoint 3735 | -6/Lower Caves | Learned Factory stockpile data 3824 | -6/Lower Caves | Discovered new exit (range 5) 3826 | -6/Lower Caves | Identified exit to Zion 3826 | -6/Lower Caves | Entered Zion 3838 | -6/Zion | Build established: Scavenger-Mutant 3844 | -6/Zion | Received a hallucinogenic algorithm 3930 | -6/Zion | Gained Derelict followers 3974 | -6/Zion | Learned location of Quarantine (-2) 4039 | -6/Zion | Rebuked by Imprinter 4047 | -6/Zion | Attempted to imprint without authorization 4047 | -6/Zion | Attacked by Zionites 4121 | -6/Zion | Lost 8 parts (2p3n1u2w) 4128 | -6/Zion | Core integrity fell below 50% 4161 | -6/Zion | Spotted S5-9QZ(B) 4164 | -6/Zion | Spotted HB-TFR(B) 4176 | -6/Zion | CL-ANK came to Zion's defense 4176 | -6/Zion | Core integrity fell below 20% 4178 | -6/Zion | Discovered new exit (range 16) 4186 | -6/Zion | Entered Proximity Caves 4188 | -5/Proximity Caves | Attracted the attention of an 0b10 checkpoint 4220 | -5/Proximity Caves | Attracted the attention of an 0b10 outpost 4262 | -5/Proximity Caves | Spotted B-75 Beast 4269 | -5/Proximity Caves | Destroyed by B-75 Beast with Heavy Plasma Cannon Last Messages --------------- 04197_ Penetrated by Slug. 04219_ Exp. Thermal Shield destroyed. 04219_ Penetrated by Slug. 04219_ Adv. Targeting Computer destroyed. 04219_ Slug penetrates Wall. 04220_ Y-72 Warden: "DETECTED UNIDENTIFIED DERELICT." 04220_ B-60 Warrior springs to life. 04220_ L-41 Fighter springs to life. 04224_ Y-72 Warden: "REQUESTING BACKUP." 04236_ Searching scrap... 04236_ Found EM Shield. 04236_ Found Hvy. Pick. 04236_ Found System Backup Module. 04236_ Found Coolant Injector. 04236_ Found 20 Matter. 04237_ Acquired EM Shield. 04242_ System corrupted: Component data lost. 04250_ S-27 Virus destroyed. 04253_ Acquired 20 matter. 04255_ Acquired VTOL Module. Map ----- +----------------------------------------------------+ | ???????????????# ### ##???##????????????? | | ?????????????????# ##??????????????????? | | ??????????????????# ##???????????????????? | | ??????????????????## #????????????????????? | | ???????????????????### ##???????????????????? | | ?????????????????????##! ##??????????????????? | | ????????????????????## % #??????????????????? | | ???????????????????## /! #??????????????????? | | ?????????????????### #??????????????????? | | ??????????????#### ##?????????????????? | | ###???????????# #?????????????????? | | # ###?????????# #?????????????????? | | ##????????# ##?????????????????? | | #??# ###### #??????????????????? | | #?? ???### ###ll #??????????????????? | | ##??# ???## ##?# ####????????????????? | | "#??# #???## #?## ##???????????????? | | #??? ??#### ### #???????????????? | | ##??????## ### #???????????????? | | ##??????## ##### #???????????????? | | ##???????# ##??# #???????????????? | | ##???####?# ##??## ##??????????????? | | ##???# ### #?### #; #??????????????? | | ##### #### #??????????????? | | ##?# ##??????????????? | | #??# ## @BB ##???????????????? | | ## #### #??#??# BB ####????????????????? | | ?###??###########?????# #???????????????????? | | ??????????????????????# #???????????????????? | | ??????????????????????########???????????????????? | | ?????????????????????????????????????????????????? | | ?????????????????????????????????????????????????? | | ?????????????????????????????????????????????????? | | ?????????????????????????????????????????????????? | | ?????????????????????????????????????????????????? | | ?????????????????????????????????????????????????? | | ?????????????????????????????????????????????????? | | ?????????????????????????????????????????????????? | | ?????????????????????????????????????????????????? | | ?????????????????????????????????????????????????? | | ?????????????????????????????????????????????????? | | ?????????????????????????????????????????????????? | | ?????????????????????????????????????????????????? | | ?????????????????????????????????????????????????? | | | | | | | | | | | | | +----------------------------------------------------+ Best States ------------- Heat Dissipation 56 Energy Generation 34 Energy Capacity 385 Matter Stores 300 Matter Capacity 300 Sight Range 22 Robot Scan Range 16 Terrain Scan Range 20 Terrain Scan Density 1210 Resistance: TH 30 Resistance: EM 25 Utility Shielding 66 Evasion (%) 62 Targeting Accuracy 10 Recoil Reduction 2 Particle Charging 25 Offensive Hacking 10 Item Schematics ----------------- Combat Drone Bay | -7/Data Miner | Free Lgt. Regenerative Plating | -7/Data Miner | Free Exp. Terrain Scanner | -7/Data Miner | Free Exp. Terrain Scan Processor | -7/Data Miner | Free Exp. ECM Suite | -7/Data Miner | Free Kinetic Spear | -7/Data Miner | Free Robot Schematics ------------------ S-27 Virus | -7/Data Miner | Free G-50 Soldier | -7/Data Miner | Free H-66 Slayer | -7/Data Miner | Free I-36 Angel | -7/Data Miner | Free I-47 Archangel | -7/Data Miner | Free Fabricated ------------ Exp. Terrain Scan Processor | x1 | -6/Factory Alien Tech Used ----------------- None Achievements -------------- Release The Drones! Challenges ------------ None Game ------ Seed PulseMiniGreatsword Manual? 0 Play Time 01:34:23 Cumulative 109.8 hours Start 2021.02.20 @ 19:19:14 End 2021.02.27 @ 18:05:09 Sessions 9 Manual Loads 0 Difficulty Rogue Special Mode None Game No. 71 Rogue 71 Adventurer 0 Explorer 0 Win Type - Total 9 Types 8/0/0/1/0/0/0/0/0 Lore% 63 Gallery% 66 Achievement% 35 Wizard Run 0 Options --------- ASCII 0 Keyboard 1 Movement Numpad Keybinds 0 Fullscreen 2 Font 24/Smallcaps Map View 76x50 Tactical HUD 1 Map Filters NONE Filters LOW_CONTRAST(47,30,31) Steam 0 RUN: 094642ff-bc09-4f34-8346-b9f45f1fff7b